fUSD/lending_fUSD_20241231
["ID","MTS","AMOUNT","RATE_DAILY","PERIOD"]
[347303708,1735672233072,-150.0,0.00012903,2]
[347303710,1735672233081,-253.13143945,0.00012908,2]
[347303712,1735672233091,-150.0,0.00012908,2]
[347303714,1735672233100,-150.0,0.00012912,2]
[347303716,1735672233109,-150.0,0.00012915,2]
[347303718,1735672233119,-150.0,0.00012916,2]
[347303720,1735672233128,-150.0,0.00012918,2]
[347303722,1735672233137,-150.0,0.00012918,2]
[347303724,1735672233147,-150.0,0.00012919,2]
[347303726,1735672233156,-150.0,0.00012921,2]
[347303728,1735672233166,-150.0,0.00012921,2]
[347303730,1735672233176,-150.0,0.00012923,2]
[347303732,1735672233187,-150.0,0.0001293,2]
[347303733,1735672233196,-1955.11,0.00012935,2]
[347303736,1735672233206,-150.0,0.00012935,2]
[347303738,1735672233215,-150.0,0.00012935,2]
[347303740,1735672233225,-150.0,0.00012935,2]
[347303741,1735672233234,-150.0,0.00012939,2]
[347303743,1735672233244,-150.0,0.0001294,2]
[347303745,1735672233253,-150.0,0.00012944,2]
[347303747,1735672233263,-150.0,0.00012945,2]
[347303749,1735672233273,-150.0,0.00012945,2]
[347303751,1735672233282,-150.0,0.00012949,2]
[347303753,1735672233291,-151.3553626,0.00012949,2]
[347303755,1735672233301,-150.0,0.00012952,2]
[347303757,1735672233310,-150.0,0.00012954,2]
[347303759,1735672233319,-150.0,0.00012961,2]
[347303760,1735672233329,-150.0,0.00012961,2]
[347303761,1735672233338,-1500.0,0.00012963,2]
[347303762,1735672233348,-300.0,0.00012967,2]
[347303763,1735672233358,-150.0,0.00012968,2]
[347303764,1735672233368,-1000.0,0.0001297,2]
[347303765,1735672233383,-1000.0,0.0001297,2]
[347303766,1735672233393,-1000.0,0.0001297,2]
[347303767,1735672233402,-1000.0,0.0001297,2]
[347303768,1735672233412,-500.0,0.0001297,2]
[347303769,1735672233423,-1200.0,0.0001297,2]
[347303770,1735672233433,-500.0,0.0001297,2]
[347303771,1735672233443,-500.0,0.0001297,2]
[347303772,1735672233454,-500.0,0.0001297,2]
[347303773,1735672233464,-500.0,0.0001297,2]
[347303774,1735672233474,-792.15894642,0.0001297,2]
[347303775,1735672233483,-519.2101584,0.00012973,2]
[347303776,1735672233493,-648.16566158,0.00012973,2]
[347303777,1735672233502,-164.06661373,0.00012973,2]
[347303778,1735672233513,-500.0,0.00012973,2]
[347303779,1735672233522,-169.55025834,0.00012973,2]
[347303780,1735672233532,-500.0,0.00012973,2]
[347303781,1735672233542,-150.0,0.00012976,2]
[347303782,1735672233552,-150.0,0.00012976,2]
[347303783,1735672233562,-150.0,0.00012981,2]
[347303784,1735672233571,-150.0,0.00012986,2]
[347303785,1735672233581,-150.0,0.00012989,2]
[347303786,1735672233591,-1358.45335168,0.0001299,2]
[347303787,1735672233601,-150.0,0.00012993,2]
[347303788,1735672233611,-150.0,0.00012994,2]
[347303789,1735672233621,-150.0,0.00012995,2]
[347303790,1735672233631,-2000.0,0.00012999,2]
[347303791,1735672233641,-2000.0,0.00012999,2]
[347303792,1735672233651,-500.0,0.00012999,2]
[347303793,1735672233661,-352.90871872,0.00012999,2]
[347303794,1735672233671,-500.0,0.00012999,2]
[347303795,1735672233682,-500.0,0.00012999,2]
[347303796,1735672233691,-2000.0,0.00012999,2]
[347303797,1735672233701,-2000.0,0.00012999,2]
[347303798,1735672233711,-449.24144614,0.00012999,2]
[347303799,1735672233721,-500.0,0.00012999,2]
[347303800,1735672233731,-500.0,0.00012999,2]
[347303801,1735672233740,-500.0,0.00012999,2]
[347303802,1735672233750,-500.0,0.00012999,2]
[347303803,1735672233760,-588.86158693,0.00012999,2]
[347303804,1735672233769,-380.74060403,0.00012999,2]
[347303805,1735672233779,-500.0,0.00012999,2]
[347303806,1735672233789,-646.45,0.00012999,2]
[347303807,1735672233799,-1753.9305486,0.00012999,2]
[347303808,1735672233809,-1198.5344951,0.00012999,2]
[347303809,1735672233819,-2258.8503647,0.00012999,2]
[347303810,1735672233828,-1583.9386376,0.00012999,2]
[347303811,1735672233838,-3177.33757541,0.00012999,2]
[347303913,1735672239316,-111.08298019,0.00012999,2]
[347303914,1735672239326,-7500.0,0.00012999,2]
[347303915,1735672239337,-7500.0,0.00012999,2]
[347303916,1735672239346,-4988.91701981,0.00012999,2]
[347303920,1735672239404,-2511.08298019,0.00012999,2]
[347303922,1735672239414,-7500.0,0.00012999,2]
[347303924,1735672239425,-7500.0,0.00012999,2]
[347303926,1735672239434,-7500.0,0.00012999,2]
[347303928,1735672239445,-7500.0,0.00012999,2]
[347303930,1735672239454,-7500.0,0.00012999,2]
[347303932,1735672239466,-1690.03953919,0.00012999,2]
[347303934,1735672239476,-571.0,0.00012999,2]
[347303936,1735672239485,-1980.3872787,0.00013,2]
[347303938,1735672239495,-449995.20730744,0.00013,2]
[347303940,1735672239504,-18397686.97492988,0.00013,2]
[347304102,1735672241034,-2256.96589732,0.00013,2]
[347304104,1735672241046,-475.56,0.00013,2]
[347304106,1735672241057,-2505156.46636147,0.00013,2]
[347304110,1735672241087,-47050.71349997,0.00013,2]
[347304112,1735672241098,-609.8047061,0.00013,2]
[347304120,1735672241155,-33682.23809997,0.00013,2]
[347304633,1735672246046,-2000.0,0.000129,2]
[347304635,1735672246055,-103459.58763858,0.00013,2]
[347304638,1735672246079,-180050.85161532,0.00013,2]
[347304642,1735672246102,-801.42,0.00013,2]
[347304644,1735672246113,-3030.24506845,0.00013,2]
[347305180,1735672329322,707.71,0.00010361,2]
[347305182,1735672361161,190.91,0.00010137,2]
[347305183,1735672457318,200.0,0.00011,2]
[347305184,1735672987001,400.0,0.000109,3]
[347305185,1735672988518,900.0,0.00011,4]
[347305186,1735673116482,150.0,0.00010332,2]
[347305187,1735673116696,150.0,0.00010905,2]
[347305189,1735673235775,193.15,0.00010137,2]
[347305190,1735673245031,300.0,0.000105,3]
[347305191,1735673247061,700.0,0.000106,3]
[347305192,1735673249125,1100.0,0.000107,3]
[347305193,1735673250766,1500.0,0.000108,3]
[347305194,1735673253122,1900.0,0.000109,3]
[347305195,1735673299427,702.44,8.845e-05,2]
[347305230,1735673432813,-300.0,0.00011034,2]
[347305231,1735673432823,-250.0,0.00011035,2]
[347305232,1735673432832,-272.95997561,0.00011035,2]
[347305233,1735673432843,-20246.40999995,0.00011035,2]
[347305234,1735673432991,-357.355385,0.00011035,2]
[347305235,1735673433003,-1349.84479405,0.00011035,2]
[347305236,1735673433015,-1673.42984539,0.00011035,2]
[347305237,1735673433024,-1000.0,0.0001104,2]
[347305238,1735673433034,-25183.82943472,0.00011109,2]
[347305239,1735673433046,-556.26670477,0.00011109,2]
[347305240,1735673433057,-834.10534825,0.00011109,2]
[347305241,1735673433107,-20732.92888209,0.00011109,2]
[347305242,1735673434684,250.0,0.00010906,2]
[347305246,1735673438264,-467.05,0.00011109,2]
[347305247,1735673438434,-2225.81963017,0.00011109,2]
[347305248,1735673438444,-702.44,0.00011109,2]
[347305249,1735673438454,-300.0,0.000114,4]
[347305250,1735673438464,-168.08147606,0.000114,2]
[347305251,1735673438474,-3715.38333449,0.000114,2]
[347305252,1735673438484,-7953.93385784,0.000114,2]
[347305253,1735673438494,-356.44797086,0.00011473,2]
[347305254,1735673438503,-176.47512584,0.00011473,2]
[347305255,1735673438514,-500.0,0.00011473,2]
[347305256,1735673438523,-500.0,0.00011473,2]
[347305269,1735673438816,-353.13890883,0.00011473,2]
[347305270,1735673438848,-160.57363585,0.00011473,2]
[347305271,1735673438858,-500.0,0.00011473,2]
[347305272,1735673438867,-151.24630703,0.00011473,2]
[347305273,1735673438876,-150.0,0.00011479,2]
[347305274,1735673438885,-151.0,0.00011493,2]
[347305275,1735673438894,-344.24057138,0.00011499,2]
[347305276,1735673438903,-500.0,0.00011499,2]
[347305277,1735673438913,-500.0,0.00011499,2]
[347305278,1735673438922,-500.0,0.00011499,2]
[347305279,1735673438932,-617.7726111,0.00011499,2]
[347305280,1735673438943,-500.0,0.00011499,2]
[347305281,1735673438952,-528.48766982,0.00011499,2]
[347305282,1735673438961,-166.48647042,0.00011499,2]
[347305283,1735673438970,-500.0,0.00011499,2]
[347305284,1735673438979,-500.0,0.00011499,2]
[347305285,1735673438988,-500.0,0.00011499,2]
[347305286,1735673438998,-183.88940851,0.00011499,2]
[347305287,1735673439007,-12787.65830959,0.000115,2]
[347305288,1735673439016,-4141072.97786223,0.000115,2]
[347305289,1735673439025,-36347744.31288358,0.000115,2]
[347305290,1735673439268,-776.88991474,0.000115,2]
[347305291,1735673439280,-38284.92511149,0.000115,2]
[347305292,1735673439291,-463.4202856,0.000115,2]
[347305293,1735673439302,-609.44254932,0.000115,2]
[347305296,1735673440902,-2845.77,0.000115,2]
[347305297,1735673441083,-9070.42349616,0.000115,2]
[347305298,1735673441094,-286.24438354,0.000115,2]
[347305299,1735673441105,-1728.77262585,0.000115,2]
[347305300,1735673442199,-1925.36,0.000115,2]
[347305301,1735673442210,-24353.98229285,0.000115,2]
[347305304,1735673444555,-190.75173835,0.000114,2]
[347305305,1735673444565,-113.77826162,0.000115,2]
[347305306,1735673444620,-331596.09320843,0.000115,2]
[347305307,1735673444631,-521.81096343,0.000115,2]
[347305308,1735673444643,-32721.15975101,0.000115,2]
[347305309,1735673444683,-427519.8257296,0.000115,2]
[347305310,1735673444749,-425.73802,0.000115,2]
[347305318,1735673446830,-355.64622195,0.00011473,2]
[347305319,1735673446842,-144.35377805,0.00011473,2]
[347305320,1735673446852,-399346.22066281,0.000115,2]
[347305321,1735673446934,-178149.999999,0.000115,2]
[347305322,1735673446947,-780.60377805,0.000115,2]
[347305323,1735673446958,-3282.40982692,0.000115,2]
[347305324,1735673446969,-1947.7999999,0.000115,2]
[347305325,1735673446980,-5602.1528065,0.000115,2]
[347305326,1735673446992,-404.880005,0.000115,2]
[347305327,1735673447013,-405.46587659,0.000115,2]
[347305328,1735673447024,-1000.93842479,0.000115,2]
[347305329,1735673447065,-600.47238682,0.000115,2]
[347305330,1735673447086,-5970.24444268,0.000115,2]
[347305331,1735673447097,-3949.3,0.000115,2]
[347305333,1735673634678,9580.98203078,0.00011,2]
[347305334,1735673707793,-433.65,0.00011282,2]
[347305335,1735673707815,-815.41179025,0.000114,2]
[347305336,1735673707841,-1092.26497318,0.000114,2]
[347305337,1735673707864,-691.28145971,0.000114,2]
[347305338,1735673707886,-367.11993708,0.000114,2]
[347305339,1735673707910,-500.0,0.00011473,2]
[347305340,1735673707934,-500.0,0.00011473,2]
[347305341,1735673707958,-524.72754162,0.00011473,2]
[347305342,1735673707980,-297.64192349,0.00011493,2]
[347305343,1735673708002,-1348.5313,0.00011499,2]
[347305344,1735673708027,-11429.37107467,0.000115,2]
[347305345,1735674003069,5007.51205075,0.00010944,2]
[347305346,1735674003603,5000.0,0.00010944,2]
[347305347,1735674003837,5000.0,0.00010944,2]
[347305348,1735674004008,5000.0,0.00010944,2]
[347305349,1735674004199,5000.0,0.00010944,2]
[347305350,1735674278039,661.32,9.022e-05,2]
[347305353,1735674411414,706.47,0.00010798,2]
[347305355,1735674462666,251.17,0.00010137,2]
[347305356,1735674530725,1000.0,0.00010827,2]
[347305357,1735674577136,250.0,0.00010827,2]
[347305367,1735674632799,-6311.46,0.00011073,2]
[347305368,1735674632809,-200.0,0.00011108,2]
[347305369,1735674632818,-171.14,0.00011152,2]
[347305371,1735674632828,-250.0,0.00011152,2]
[347305373,1735674632838,-36566.95231949,0.00011168,2]
[347305375,1735674632847,-333.1597288,0.00011168,2]
[347305377,1735674632856,-150.0,0.00011205,2]
[347305379,1735674632865,-711.81,0.00011221,2]
[347305381,1735674632874,-250.0,0.00011248,2]
[347305383,1735674632884,-661.32,0.00011286,2]
[347305385,1735674632893,-3000.0,0.0001147,2]
[347305387,1735674632903,-300.0,0.00011472,2]
[347305389,1735674632913,-500.0,0.00011473,2]
[347305391,1735674632923,-500.0,0.00011473,2]
[347305393,1735674632932,-1384.3592,0.00011479,2]
[347305395,1735674632942,-1703.818,0.00011498,2]
[347305396,1735674632952,-165.028,0.00011498,2]
[347305397,1735674632961,-7500.0,0.00011499,2]
[347305398,1735674632971,-7500.0,0.00011499,2]
[347305399,1735674632980,-7500.0,0.00011499,2]
[347305400,1735674632989,-7500.0,0.00011499,2]
[347305401,1735674632998,-7500.0,0.00011499,2]
[347305402,1735674633009,-7500.0,0.00011499,2]
[347305403,1735674633018,-295.16475275,0.00011499,2]
[347305404,1735674633029,-791.94,0.00011499,2]
[347305405,1735674633038,-500.0,0.00011499,2]
[347305406,1735674633048,-342.16571356,0.00011499,2]
[347305407,1735674633058,-1327514.00149618,0.000115,2]
[347305408,1735674633071,-10043.94071989,0.000115,2]
[347305409,1735674633082,-940.68972312,0.000115,2]
[347305415,1735674638604,-335.5352,0.000115,2]
[347305416,1735674638671,-416.3300127,0.000115,2]
[347305417,1735674638683,-371.92889661,0.000115,2]
[347305422,1735674638789,-348836.25395684,0.000115,2]
[347305424,1735674638800,-445584.14813668,0.000115,2]
[347305425,1735674639581,-1016.62075593,0.000115,2]
[347305426,1735674639593,-387.27625117,0.000115,2]
[347305432,1735674641108,-43500.95458533,0.000115,2]
[347305433,1735674641119,-1693.83655973,0.000115,2]
[347305434,1735674641131,-3318.96264027,0.000115,2]
[347305435,1735674641500,-2004.69357214,0.000115,2]
[347305436,1735674641512,-342.38583115,0.000115,2]
[347305437,1735674641523,-342.89261828,0.000115,2]
[347305438,1735674641535,-18195.48413023,0.000115,2]
[347305439,1735674641547,-305.73329223,0.000115,2]
[347305440,1735674641558,-419.79,0.000115,2]
[347305441,1735674641684,-288.28195309,0.000115,2]
[347305442,1735674641696,-1421.05,0.000115,2]
[347305443,1735674641708,-1412.37747664,0.000115,2]
[347305444,1735674641720,-504.555,0.000115,2]
[347305449,1735674644415,-2179696.12519014,0.000115,2]
[347305450,1735674644426,-568.02210001,0.000115,2]
[347305451,1735674644437,-31686.48570744,0.000115,2]
[347305452,1735674644448,-479.50135513,0.000115,2]
[347305453,1735674644502,-654.83600016,0.000115,2]
[347305454,1735674644513,-23307.84369583,0.000115,2]
[347305455,1735674644556,-23875.000004,0.000115,2]
[347305456,1735674644568,-1735.0,0.000115,2]
[347305457,1735674646584,-57365.28501668,0.000115,2]
[347305458,1735674646595,-1262.88706432,0.000115,2]
[347305459,1735674646703,-900.52744584,0.000115,2]
[347305460,1735674646767,-5337.5,0.000115,2]
[347305462,1735674646778,-655.5723265,0.000115,2]
[347305463,1735674646789,-5254.55817386,0.000115,2]
[347305464,1735674646800,-3298.12190352,0.000115,2]
[347305465,1735674646811,-7392.2275,0.000115,2]
[347305466,1735674646823,-6300.0,0.000115,2]
[347305467,1735674646834,-6735.34923962,0.000115,2]
[347305468,1735674646858,-79775.87745739,0.000115,2]
[347305469,1735674646869,-69457.29340278,0.000115,2]
[347305470,1735674646880,-4957.9461,0.000115,2]
[347305471,1735674646891,-555.36864314,0.000115,2]
[347305472,1735674646902,-35690.37758718,0.000115,2]
[347305473,1735674646913,-44098.50000238,0.000115,2]
[347305474,1735675220480,631.23,9.002e-05,2]
[347305475,1735675259363,1229.48,0.00010857,2]
[347305476,1735675331481,190.73,0.00010137,2]
[347305478,1735675336163,233.46,0.00010799,2]
[347305479,1735675386701,402.12,0.00010799,2]
[347305480,1735675481659,23900.0,0.00010745,2]
[347305481,1735675553731,23665.37,0.00010799,2]
[347305482,1735675610562,250.0,0.00010799,2]
[347305483,1735675642360,300.0,0.000107,3]
[347305484,1735675644440,600.0,0.000108,3]
[347305485,1735675646888,900.0,0.000109,3]
[347305486,1735675692670,150.0,0.00010959,2]
[347305489,1735675749516,171.14,0.00010799,2]
[347305490,1735675822722,1000.0,0.0001069,2]
[347305524,1735675832902,-500.0,0.00011015,2]
[347305525,1735675832913,-250.0,0.00011048,2]
[347305526,1735675832923,-250.0,0.0001115,2]
[347305527,1735675832933,-429.39983456,0.00011215,2]
[347305528,1735675832942,-631.23,0.00011265,2]
[347305529,1735675832953,-1363.054,0.0001127,2]
[347305530,1735675832963,-1300.0,0.000113,4]
[347305531,1735675832973,-1600.0,0.000114,4]
[347305532,1735675832982,-500.75,0.00011454,2]
[347305533,1735675832992,-500.0,0.00011473,2]
[347305534,1735675833002,-500.0,0.00011473,2]
[347305535,1735675833012,-371.01739044,0.00011499,2]
[347305536,1735675833022,-758.94,0.00011499,2]
[347305537,1735675833038,-7500.0,0.00011499,2]
[347305538,1735675833048,-7500.0,0.00011499,2]
[347305539,1735675833059,-693.0,0.00011499,2]
[347305540,1735675833070,-6393.82915479,0.000115,2]
[347305541,1735675833081,-1933253.81582746,0.000115,2]
[347305542,1735675833259,-500.0,0.000115,2]
[347305543,1735675833304,-326.75996925,0.000115,2]
[347305544,1735675835262,332.33043152,0.00011009,2]
[347305553,1735675838558,-174.14533046,0.000114,2]
[347305554,1735675838568,-18687.86540668,0.000115,2]
[347305574,1735675845448,-255.79573433,0.00011473,2]
[347305578,1735675846121,-244.20426567,0.00011473,2]
[347305579,1735675846130,-4172.40793199,0.000115,2]
[347305580,1735675858306,250.0,0.00010986,2]
[347305581,1735675900499,250.0,0.00010884,2]
[347305582,1735676083029,586.13,8.85e-05,2]
[347305583,1735676282744,233.46,0.00010729,2]
[347305584,1735676291696,218.834,0.0001092,2]
[347305585,1735676340284,196.05,0.00010137,2]
[347305587,1735676361779,332.33043152,0.00010991,2]
[347305588,1735676483870,819.67,0.00010752,2]
[347305589,1735676711129,150.0,0.00010332,2]
[347305590,1735676714342,150.0,0.00010332,2]
[347305591,1735676720949,150.0,0.00010332,2]
[347305592,1735676725977,163.89,0.00010404,2]
[347305594,1735676730271,122227.39471089,9e-05,2]
[347305595,1735676736607,28000.0,8e-05,2]
[347305596,1735676740071,150.0,0.00010332,2]
[347305597,1735676753406,4607.82682862,6.94e-05,2]
[347305598,1735676760165,5608.98,0.00010397,2]
[347305599,1735676761619,10010.79377231,9.8e-05,2]
[347305600,1735676766252,11041.05271689,7e-05,2]
[347305601,1735676796758,1500.0,0.0001039,2]
[347305602,1735676808998,151.33,0.00010386,2]
[347305603,1735676840483,248.2667255,0.000101,2]
[347305604,1735676864943,204.332482,0.00011002,2]
[347305605,1735676874529,52381.62724428,0.0001,2]
[347305606,1735676875215,22653.49232267,0.0001,2]
[347305608,1735676914943,-151.32,0.00011114,2]
[347305609,1735676914968,-586.13,0.00011114,2]
[347305610,1735676914990,-216.02438487,0.00011135,2]
[347305611,1735676915013,-253.16910791,0.00011135,2]
[347305612,1735676915037,-150.0,0.00011229,2]
[347305613,1735676915060,-150.0,0.00011229,2]
[347305614,1735676915082,-1500.0,0.0001123,2]
[347305615,1735676915105,-150.0,0.00011235,2]
[347305616,1735676915128,-150.0,0.00011245,2]
[347305617,1735676915151,-150.0,0.00011246,2]
[347305618,1735676915172,-150.0,0.00011249,2]
[347305619,1735676915195,-150.0,0.00011252,2]
[347305620,1735676915219,-150.0,0.00011254,2]
[347305621,1735676915243,-150.0,0.00011255,2]
[347305622,1735676915268,-150.0,0.00011263,2]
[347305623,1735676915291,-150.0,0.00011266,2]
[347305624,1735676915313,-300.0,0.00011266,2]
[347305625,1735676915336,-150.0,0.00011273,2]
[347305626,1735676915360,-1500.0,0.0001128,2]
[347305627,1735676915382,-151.36785755,0.00011284,2]
[347305628,1735676915407,-150.0,0.00011288,2]
[347305629,1735676915431,-150.0,0.00011293,2]
[347305630,1735676915455,-150.0,0.00011296,2]
[347305631,1735676915479,-150.0,0.00011303,2]
[347305632,1735676915500,-150.0,0.00011304,2]
[347305633,1735676915524,-150.0,0.00011307,2]
[347305634,1735676915545,-154.83024305,0.00011308,2]
[347305635,1735676915569,-150.0,0.00011316,2]
[347305636,1735676915591,-300.0,0.00011316,2]
[347305637,1735676915617,-150.0,0.00011321,2]
[347305638,1735676915639,-150.0,0.00011322,2]
[347305639,1735676915664,-150.0,0.00011326,2]
[347305640,1735676915688,-150.0,0.00011335,2]
[347305641,1735676915711,-150.0,0.00011337,2]
[347305642,1735676915735,-150.0,0.00011344,2]
[347305643,1735676915758,-150.0,0.00011344,2]
[347305644,1735676915781,-150.0,0.00011351,2]
[347305645,1735676915810,-150.0,0.00011359,2]
[347305646,1735676915834,-150.0,0.00011361,2]
[347305647,1735676915858,-150.0,0.00011363,2]
[347305648,1735676915883,-150.0,0.00011374,2]
[347305649,1735676915904,-768.11015094,0.00011374,2]
[347305650,1735676915926,-216.02438486,0.00011377,2]
[347305651,1735676915949,-150.0,0.00011382,2]
[347305652,1735676915972,-150.0,0.00011385,2]
[347305653,1735676915995,-150.0,0.00011388,2]
[347305654,1735676916017,-2890.39425032,0.0001139,2]
[347305655,1735676916041,-501.45,0.0001139,2]
[347305656,1735676916065,-496.35,0.0001139,2]
[347305657,1735676916087,-498.56,0.0001139,2]
[347305658,1735676916110,-490.88,0.0001139,2]
[347305659,1735676916133,-504.03,0.0001139,2]
[347305660,1735676916156,-503.07,0.0001139,2]
[347305661,1735676916179,-499.08,0.0001139,2]
[347305662,1735676916200,-150.78,0.0001139,2]
[347305663,1735676916223,-506.51,0.0001139,2]
[347305664,1735676916548,-490.13,0.0001139,2]
[347305665,1735676916585,-152.47,0.0001139,2]
[347305666,1735676916609,-491.27,0.0001139,2]
[347305667,1735676916633,-503.05,0.0001139,2]
[347305668,1735676916658,-150.0,0.00011392,2]
[347305669,1735676916679,-433.216531,0.000114,2]
[347305670,1735676916701,-170.42628655,0.000114,2]
[347305671,1735676916723,-9829.228515,0.000114,2]
[347305672,1735676916745,-150.0,0.000114,2]
[347305673,1735676916766,-207.82906832,0.000114,2]
[347305674,1735676916789,-10605.24514378,0.000114,2]
[347305675,1735676916815,-165.8322718,0.000114,2]
[347305676,1735676916839,-150.0,0.00011401,2]
[347305677,1735676916863,-150.0,0.00011402,2]
[347305678,1735676916887,-1509.00060114,0.00011409,2]
[347305679,1735676916911,-150.0,0.00011425,2]
[347305680,1735676916934,-150.0,0.00011427,2]
[347305681,1735676916956,-200.0,0.00011429,2]
[347305682,1735676916977,-3000.0,0.0001143,2]
[347305683,1735676917001,-150.0,0.00011432,2]
[347305684,1735676917022,-1500.0,0.00011436,2]
[347305685,1735676917045,-150.0,0.00011438,2]
[347305686,1735676917067,-150.0,0.00011441,2]
[347305687,1735676917090,-150.0,0.00011443,2]
[347305688,1735676917113,-150.0,0.00011443,2]
[347305689,1735676917135,-150.0,0.00011444,2]
[347305690,1735676917158,-150.0,0.00011445,2]
[347305691,1735676917180,-150.0,0.00011446,2]
[347305692,1735676917202,-150.0,0.0001145,2]
[347305693,1735676917224,-150.0,0.00011461,2]
[347305694,1735676917246,-150.0,0.00011468,2]
[347305695,1735676917267,-500.0,0.00011473,2]
[347305696,1735676917289,-500.0,0.00011473,2]
[347305697,1735676917312,-1090.443,0.00011473,2]
[347305698,1735676917334,-150.0,0.00011474,2]
[347305699,1735676917357,-300.0,0.00011475,2]
[347305700,1735676917381,-150.0,0.00011476,2]
[347305701,1735676917403,-1500.0,0.00011477,2]
[347305702,1735676917425,-19452.0,0.00011479,2]
[347305703,1735676917447,-150.0,0.00011486,2]
[347305704,1735676917471,-150.0,0.00011492,2]
[347305705,1735676917493,-1500.0,0.00011493,2]
[347305706,1735676917514,-1403.06520915,0.00011499,2]
[347305707,1735676917537,-7500.0,0.00011499,2]
[347305708,1735676917559,-7500.0,0.00011499,2]
[347305709,1735676917581,-497.49,0.000115,2]
[347305710,1735676917604,-3196.9145774,0.000115,2]
[347305711,1735676917627,-634298.47645884,0.000115,2]
[347305712,1735676979107,209.28,0.0001092,2]
[347305713,1735677011979,1000000.0,0.0002,120]
[347305715,1735677023234,439.74814065,0.00010982,2]
[347305721,1735677031891,-989.12002074,0.00011051,2]
[347305722,1735677031902,-2137.83260465,0.00011051,2]
[347305723,1735677031914,-431.29737461,0.00011051,2]
[347305724,1735677031923,-250.0,0.00011082,2]
[347305725,1735677031932,-1000.0,0.00011103,2]
[347305726,1735677031942,-3479.27927569,0.00011373,2]
[347305727,1735677031952,-300.0,0.00011472,2]
[347305728,1735677031961,-500.0,0.00011473,2]
[347305729,1735677031971,-41252.36387848,0.0001148,2]
[347305730,1735677031981,-1929.6276839,0.0001148,2]
[347305742,1735677032416,-640994.39167531,0.0001148,2]
[347305743,1735677032425,-869538.51472546,0.000115,2]
[347305744,1735677032437,-1350.31306839,0.000115,2]
[347305745,1735677032450,-673.203376,0.000115,2]
[347305746,1735677032491,-860.1006369,0.000115,2]
[347305747,1735677032502,-3400.00000001,0.000115,2]
[347305748,1735677032514,-725.291,0.000115,2]
[347305749,1735677032531,-368.86956787,0.000115,2]
[347305750,1735677032543,-9990.78806453,0.000115,2]
[347305751,1735677032579,-1147.76754527,0.000115,2]
[347305752,1735677032590,-1675.425,0.000115,2]
[347305753,1735677032602,-2992.79950614,0.000115,2]
[347305754,1735677032627,-834.6735,0.000115,2]
[347305755,1735677032638,-1943.98,0.000115,2]
[347305756,1735677032690,-541.345,0.000115,2]
[347305757,1735677032701,-6879.99999989,0.000115,2]
[347305758,1735677032713,-1181.08180393,0.000115,2]
[347305759,1735677037539,-500.0,0.00011473,2]
[347305760,1735677037551,-863.83747749,0.000115,2]
[347305761,1735677037563,-17544.88646173,0.000115,2]
[347305762,1735677037575,-474.1866154,0.000115,2]
[347305763,1735677037586,-2513.2158088,0.000115,2]
[347305764,1735677037626,-1720.91758502,0.000115,2]
[347305765,1735677037637,-2360.73409,0.000115,2]
[347305766,1735677037649,-500.0,0.000115,2]
[347305767,1735677037660,-6823.99999999,0.000115,2]
[347305768,1735677037671,-5080.59257922,0.000115,2]